Cogmind - Beta 16 @@@ ROGUE MODE // 2026.01.26 @ 20:14:49 Player: PE-P51_RE Result: Self-destructed Performance ------------- Evolutions (0) 0 Regions Visited (4) 800 Robots Destroyed (48) 240 Value Destroyed (1177) 1177 Prototype IDs (17) 340 Alien Tech Used (0) 0 Bonus (666) 666 TOTAL SCORE: 3223 Bonus ------- Follower Combat Kills 457 Registered with UFD 300 Friendly Fire -91 Cogmind --------- Core Integrity 31/250 Matter 92/300 Energy 140/140 System Corruption 0% Temperature Cool (0) Movement Treading (160) Location -7/Scraptown Parts ------- > --- POWER (1) -------- Light Deuterium Engine > --- PROPULSION (2) --- Light Treads Spiked Treads > --- UTILITY (2) ------ Cobbler Unit > --- WEAPON (2) ------- Heavy Hammer > --- INVENTORY (5) ---- Subdweller Power Source Subdweller Monowheel Beam Cannon Peak State ------------ > --- POWER ------------ Reinforced Deuterium Engine > --- PROPULSION ------- Light Treads Spiked Treads > --- UTILITY ---------- High-capacity Storage Unit Deep Structural Scanner > --- WEAPON ----------- Beam Cannon Heavy Hammer > --- INVENTORY -------- Light Deuterium Engine Nuclear Core Improved Deuterium Engine Micro Nuclear Core Cargo Legs Compact Wheel VTOL Module Xenon Bombardment Thruster Improved Heat Sink Surveybot 17 Chip Improved Actuator Array Improved Light Armor Plating Cobbler Unit Flak Gun Flak Gun Heavy Rocket Launcher [Rating: 22] Favorites ----------- Power Reinforced Deuterium Engine Engine Reinforced Deuterium Engine Power Core Nuclear Core Propulsion Light Treads Treads Light Treads Leg Aluminum Leg Utility Scrap Shield Device Cobbler Unit Storage High-capacity Storage Unit Protection Scrap Shield Weapon Spread Laser Energy Gun Spread Laser Energy Cannon Beam Cannon Ballistic Gun Assault Rifle Launcher Grenade Launcher Impact Weapon Heavy Hammer Build | -11 -10 -10 -7 -7 ------- Run | Yrd Mat Sub Rec Scr Slots Evolved . | . . . . . Power . | . . . . . Propulsion . | . . . . . Utility . | . . . . . Weapon . | . . . . . Parts Attached 28 | . 3 19 4 2 Power 7 | . . 3 3 1 Engine 6 | . . 3 2 1 Core 1 | . . . 1 . Reactor . | . . . . . Propulsion 3 | . . 3 . . Treads 3 | . . 3 . . Leg . | . . . . . Wheel . | . . . . . Hover . | . . . . . Flight . | . . . . . Utility 7 | . 1 4 1 1 Device 4 | . 1 2 . 1 Storage 2 | . . 1 1 . Processor . | . . . . . Hackware . | . . . . . Protection 1 | . . 1 . . Artifact . | . . . . . Weapon 11 | . 2 9 . . Energy Gun 6 | . 2 4 . . Energy Cannon 3 | . . 3 . . Ballistic Gun . | . . . . . Ballistic Cannon . | . . . . . Launcher 1 | . . 1 . . Special Weapon . | . . . . . Impact Weapon 1 | . . 1 . . Slashing Weapon . | . . . . . Piercing Weapon . | . . . . . Special Melee Weapon . | . . . . . Unidentified Prototypes . | . . . . . Parts Lost 5 | . . 5 . . Power 1 | . . 1 . . Propulsion 2 | . . 2 . . Utility . | . . . . . Weapon 2 | . . 2 . . Highest Loss Streak 2 | . . 2 . . To Critical Strikes . | . . . . . Average Backups 8 | 6 7 4 12 14 Power 1 | 1 1 . 1 3 Propulsion 1 | 4 2 . 2 3 Utility 2 | . . . 4 4 Weapon 3 | 1 4 3 3 2 Tool/Special . | . . . . . Unused Backups 40 | . 11 7 2 20 Power 5 | . 1 1 . 3 Propulsion 13 | . 4 2 . 7 Utility 8 | . 1 1 1 5 Weapon 12 | . 5 3 1 3 Tool/Special 2 | . . . . 2 Average Slot Usage (%) 83 | . 91 82 83 85 Engine 11 | . 14 9 11 13 Treads 26 | . . 25 28 28 Leg 1 | . 28 2 . . Device 3 | . 7 3 . 5 Storage 6 | . 14 1 12 11 Protection 5 | . . 10 . . Energy Gun 9 | . 12 18 . . Energy Cannon 10 | . . 7 14 12 Impact Weapon 6 | . . . 13 13 Peak Build Rating 22 | 6 10 17 18 22 Average Rating 14 | 6 8 12 15 17 On Entrance 10 | 6 6 10 12 18 Avg Prop Armor Cover (%) 40 | . . . . 40 Naked Turns . | . . . . . Heaviest Build 62 | 13 17 34 61 62 Greatest Support 40 | 20 20 40 40 40 Greatest Overweight (x) 1 | . . . 1 1 Average Overweight (x) . | . . . . . Largest Inventory Capacity 20 | 8 8 8 20 20 Average Capacity 11 | 8 8 5 18 17 Most Carried 20 | 6 8 8 20 20 Average Carried 10 | 6 7 5 15 16 Final Capacity 20 | 8 8 5 20 5 Final Carried 20 | 6 8 5 20 3 Class Distribution -------------------- 55% | Mutant 44% | Commander-Mutant Dominant Class ---------------- Mutant | -10/Materials Mutant | -10/Subcaves Commander-Mutant | -7/Recycling Commander-Mutant | -7/Scraptown Resources | -11 -10 -10 -7 -7 ----------- Run | Yrd Mat Sub Rec Scr Matter Collected 890 | 200 . 446 119 125 Remotely . | . . . . . Salvage Created 2438 | . . 783 1571 84 Parts 70 | . . 43 27 . Haulers Intercepted . | . . . . . Recyclers Shooed 6 | . . . 6 . Parts Field Recycled . | . . . . . Retrieved Matter . | . . . . . Parts Self-Destructed 20 | . . 20 . . Prevented . | . . . . . Parts Restored . | . . . . . Kills | -11 -10 -10 -7 -7 ------- Run | Yrd Mat Sub Rec Scr Combat Hostiles Destroyed 28 | . . 25 3 . Melee 2 | . . . 2 . Guns 23 | . . 23 . . Cannons 2 | . . 2 . . Classes Destroyed 10 | . . 7 3 . Builder 1 | . . . 1 . Recycler 14 | . . . 13 1 Turret 2 | . . 2 . . Swarmer 4 | . . 4 . . Grunt 4 | . . 3 1 . Duelist 2 | . . . 2 . Sentry 2 | . . 1 1 . Cobbler 1 | . . 1 . . Subdweller 17 | . . 17 . . Zionite 2 | . . 2 . . Best Kill Streak 5 | . . 4 5 . Combat Bots Only 4 | . . 4 1 . Max Kills in Single Turn 1 | . . 1 1 1 Gunslinging . | . . . . . Exploded . | . . . . . Melee 1 | . . . 1 . Uniques/NPCs Destroyed . | . . . . . Combat | -11 -10 -10 -7 -7 -------- Run | Yrd Mat Sub Rec Scr Hostile Shots Fired 157 | . . 128 27 2 Missed 43 | . . 34 8 1 Hits 114 | . . 94 19 1 Melee 7 | . . . 7 . Projectile 107 | . . 94 12 1 Critical Strikes 10 | . . 8 2 . Damage Taken 2252 | . . 1954 292 6 Core 219 | . . 152 67 . Absorbed by Shields 66 | . . . 61 5 Core Remaining (%) 100 | 100 . . . . Volleys Fired 278 | . . 259 19 . Largest 2 | . . 2 1 . Hottest 145 | . . 145 80 . Shots Fired 362 | . . 344 18 . Gun 241 | . . 241 . . Cannon 118 | . . 100 18 . Launcher 3 | . . 3 . . Special . | . . . . . Kinetic . | . . . . . Thermal 359 | . . 341 18 . Explosive 3 | . . 3 . . Electromagnetic . | . . . . . Robot Hit Streak 31 | . . 31 5 . Robot Miss Streak 12 | . . 12 2 . Penetration Max . | . . . . . Secondary Targets 4 | . . 4 . . Max Gunslinging Chain 1 | . . 1 . . Shots Hit Robots 189 | . . 140 47 2 Core Hits 173 | . . 161 11 1 Critical Kills 1 | . . 1 . . Critical Parts Destroyed 3 | . . . 3 . Critical Strikes 5 | . . 1 4 . Meltdown 1 | . . 1 . . Smash 4 | . . . 4 . Melee Attacks 87 | . . 35 50 2 Impact 87 | . . 35 50 2 Slashing . | . . . . . Piercing . | . . . . . Sneak Attacks 19 | . . . 17 2 Combat Hostiles . | . . . . . Follow-up Attacks . | . . . . . Damage Inflicted 5022 | . . 2413 2477 132 Guns 2059 | . . 2059 . . Cannons 492 | . . 248 244 . Explosions 106 | . . 106 . . Melee 2365 | . . . 2233 132 Ramming . | . . . . . Kinetic . | . . . . . Thermal 2551 | . . 2307 244 . Explosive 106 | . . 106 . . Electromagnetic . | . . . . . Impact 2365 | . . . 2233 132 Slashing . | . . . . . Piercing . | . . . . . Highest Corruption . | . . . . . Average Corruption . | . . . . . Corruption Purged . | . . . . . Corruption Blocked . | . . . . . Overload Shots . | . . . . . Overflow Damage 799 | . . . 799 . Projectiles 9 | . . . 9 . Explosions . | . . . . . Melee 790 | . . . 790 . Knockbacks 15 | . . . 14 1 Impact 12 | . . . 11 1 Kinetic . | . . . . . Secondary 3 | . . . 3 . Self-Inflicted Damage 21 | . . 21 . . Shots 1 | . . 1 . . Rammed . | . . . . . Targets Rammed . | . . . . . Kicked . | . . . . . Crushed . | . . . . . Highest Temperature 120 | . . 120 120 . Average Temperature 34 | . . 31 45 . Received Heat Transfer 327 | . . 312 15 . Siege Activations . | . . . . . Martial Activations . | . . . . . Shielding Activations . | . . . . . Robots Disrupted . | . . . . . Combat Hostiles . | . . . . . Robots Corrupted 14 | . . . 14 . Combat Hostiles 5 | . . . 5 . Parts Fried 17 | . . . 17 . Impact Corruptions 31 | . . . 31 . Robots Melted 1 | . . 1 . . Combat Hostiles . | . . . . . Parts Melted 4 | . . 4 . . Heat Transferred 3362 | . . 2918 444 . Parts Sabotaged . | . . . . . Parts Stolen . | . . . . . Parts Stripped . | . . . . . Power Chain Reactions . | . . . . . Alert | -11 -10 -10 -7 -7 ------- Run | Yrd Mat Sub Rec Scr Maximum Alert Level . | . . . . . Low Security (%) 100 | 100 100 . 100 . Level 1 . | . . . . . Level 2 . | . . . . . Level 3 . | . . . . . Level 4 . | . . . . . Level 5 . | . . . . . High Security . | . . . . . Max Security . | . . . . . Peak Influence 144 | . . . 144 . Initial 98 | . . . 98 . Average 56 | . . . 59 . Influence Increases 1090 | . . 390 700 . Destroy 0b10 Robot/C 440 | . . 200 240 . Destroy 0b10 Robot/NC 115 | . . . 115 . Destroy Leader 10 | . . 10 . . Allied During Kill 86 | . . . 86 . Successful Hack 53 | . . . 53 . Select Force Hacks 150 | . . . 150 . Destroy Structure 11 | . . . 11 . Lose Combat Pursuer 225 | . . 180 45 . Influence Decreases 1090 | . . 184 885 21 Entered New Map 129 | . . . 108 21 Time Decay 846 | . . 164 682 . Lost Part 20 | . . 20 . . Lost Ally 95 | . . . 95 . Squads Dispatched . | . . . . . Investigation . | . . . . . Extermination . | . . . . . Reinforcement . | . . . . . Assault . | . . . . . Garrison . | . . . . . Intercept . | . . . . . Searches Triggered . | . . . . . Construction Impeded . | . . . . . Haulers Reinforced . | . . . . . Active Scanning Responses . | . . . . . Cargo Convoy Interrupts . | . . . . . Stealth | -11 -10 -10 -7 -7 --------- Run | Yrd Mat Sub Rec Scr Distress Signals 1 | . . . 1 . Communications Jammed . | . . . . . Distress Signals . | . . . . . Times Spotted 60 | . . 32 13 15 Peak Tracking Total 21 | . . 4 3 21 Tactical Retreats 8 | . . 6 2 . Traps | -11 -10 -10 -7 -7 ------- Run | Yrd Mat Sub Rec Scr Traps Triggered 2 | . . 2 . . Indirectly . | . . . . . Trap Hack Attempts . | . . . . . Triggered . | . . . . . Disarmed . | . . . . . Reprogrammed . | . . . . . Reused . | . . . . . Traps Extracted . | . . . . . Installed . | . . . . . Triggered . | . . . . . Machines | -11 -10 -10 -7 -7 ---------- Run | Yrd Mat Sub Rec Scr Machines Disabled 3 | . . 2 . 1 Max in Single Turn 1 | . . 1 . 1 Machines Repaired . | . . . . . Machines Dismantled . | . . . . . Machines Sabotaged . | . . . . . Overloaded Fab Kills . | . . . . . Hacking | -11 -10 -10 -7 -7 --------- Run | Yrd Mat Sub Rec Scr Machines Accessed 19 | . 3 2 11 3 Terminals 7 | . 1 . 6 . Fabricators . | . . . . . Repair Stations 1 | . 1 . . . Recycling Units 6 | . 1 . 5 . Scanalyzers . | . . . . . Garrison Access . | . . . . . Total Hacks 70 | . 6 5 31 28 Successful 48 | . 2 5 13 28 Failed 22 | . 4 . 18 . Catastrophic 8 | . . . 8 . Database Lockouts . | . . . . . Manual 8 | . 2 . 6 . Terminals 21 | . 2 . 19 . Fabricators . | . . . . . Repair Stations 2 | . 2 . . . Recycling Units 14 | . 2 . 12 . Scanalyzers . | . . . . . Garrison Access . | . . . . . Terminal Hacks 37 | . . 5 4 28 Record 25 | . . 4 . 21 Part Schematic 2 | . . . 2 . Robot Analysis 8 | . . . 1 7 Prototype ID Bank 1 | . . . 1 . Proto ID Catalog 1 | . . 1 . . Fabricator Hacks . | . . . . . Repair Station Hacks 1 | . 1 . . . Refit 1 | . 1 . . . Recycling Unit Hacks 5 | . 1 . 4 . Retrieve Components 5 | . 1 . 4 . Scanalyzer . | . . . . . Garrison Access Hacks . | . . . . . Unauthorized Hacks 5 | . . . 5 . Terminals . | . . . . . Fabricators . | . . . . . Repair Stations . | . . . . . Recycling Units 5 | . . . 5 . Tunnel 5 | . . . 5 . Scanalyzers . | . . . . . Garrison Access . | . . . . . Data Cores Recovered . | . . . . . Used . | . . . . . Hacking Detections 13 | . 3 . 10 . Full Trace Events 4 | . . . 4 . Feedback Events . | . . . . . Feedback Blocked . | . . . . . Robot Schematics Acquired . | . . . . . Robots Built . | . . . . . Authchips . | . . . . . Time . | . . . . . Total Robot Build Rating . | . . . . . Part Schematics Acquired 2 | . . . 2 . Parts Built . | . . . . . Authchips . | . . . . . Time . | . . . . . Total Part Build Rating . | . . . . . Part Studies Acquired . | . . . . . Parts Repaired . | . . . . . Time . | . . . . . Parts Recycled . | . . . . . Recycled Matter . | . . . . . Retrieved Matter . | . . . . . Retrieved Components 26 | . 1 . 25 . Parts Scanalyzed . | . . . . . Part Schematics Acquired . | . . . . . Parts Damaged . | . . . . . Bothacking | -11 -10 -10 -7 -7 ------------ Run | Yrd Mat Sub Rec Scr Used RIF Installer . | . . . . . Robots Hacked . | . . . . . Non-combat . | . . . . . Combat . | . . . . . Robot Hacks Applied . | . . . . . Relay Couplers Released . | . . . . . Fabnet Peak Effective % . | . . . . . Robots Rewired 22 | . . . 22 . Allies Hacked . | . . . . . Hacks Repelled . | . . . . . Allies | -11 -10 -10 -7 -7 -------- Run | Yrd Mat Sub Rec Scr Total Allies 22 | . . . 22 . Largest Group 16 | . . . 16 16 Highest-Rated Group 287 | . . . 287 287 Highest-Rated Ally 40 | . . . 40 40 Total Orders 1 | . . . . 1 STAY 1 | . . . . 1 Ally Attacks 68 | . . . 45 23 Total Damage 1416 | . . . 908 508 Kills 12 | . . . 9 3 Allies Corrupted 1 | . . . 1 . Allies Melted . | . . . . . Intel | -11 -10 -10 -7 -7 ------- Run | Yrd Mat Sub Rec Scr Active Infowar (turns) 1024 | . . . . 1024 Structural 1024 | . . . . 1024 Robot Analysis Total 8 | . . . 1 7 Derelict Logs Recovered 2 | . . 2 . . Drone Launches . | . . . . . Drone Recoveries . | . . . . . Exploration | -11 -10 -10 -7 -7 ------------- Run | Yrd Mat Sub Rec Scr Turns Passed 15670 | 3 182 8208 3020 4257 Spaces Moved 7631 | 3 141 4616 1026 1845 Core 278 | . . . . 278 Treads 6674 | . . 4081 1026 1567 Legs 679 | 3 141 535 . . Wheels . | . . . . . Hover . | . . . . . Flight . | . . . . . Fastest Speed 50 | 120 120 120 160 50 Average Speed 180 | 120 120 155 244 211 Slowest Speed 250 | 120 120 160 250 250 Overloaded Moves . | . . . . . Propulsion Burnouts . | . . . . . Robots Hopped . | . . . . . Potential Cave-ins . | . . . . . Cave-ins Triggered 1 | . . 1 . . Exploration Rate (%) 59 | 2 24 98 99 75 Regions Visited 4 Branch Regions 3 Pre-discovered Areas 10 | . . 1 5 4 Known Exits Taken . | . . . . . Unknown Exits Taken 4 | 1 1 1 1 . Scrap Searched 13 | . . 10 . 3 Spaces Dug 59 | . . 52 7 . Terrain Destroyed 100 | . . 90 10 . Melee 13 | . . 6 7 . Projectile 65 | . . 62 3 . AOE 22 | . . 22 . . Terrain Rammed . | . . . . . Walls Destroyed . | . . . . . Machines Disabled . | . . . . . Actions | -11 -10 -10 -7 -7 --------- Run | Yrd Mat Sub Rec Scr Total 9060 | 2 158 5237 1435 2228 Wait 603 | . . 239 64 300 Move 7627 | 2 140 4615 1025 1845 Hop . | . . . . . Pick Up 58 | . 7 8 17 26 Fast Attach 7 | . 2 3 2 . Attach 17 | . 1 7 2 7 Detach 10 | . 1 2 1 6 Swap 32 | . . 29 3 . Drop 73 | . 7 18 6 42 Fire 278 | . . 259 19 . Melee 87 | . . 35 50 2 Ram . | . . . . . Kick . | . . . . . Crush . | . . . . . Escape Stasis . | . . . . . Rewire 246 | . . . 246 . Trap . | . . . . . Miscellaneous 22 | . . 22 . . Route ------- -11/Scrapyard -10/Materials (discovered 2 exits: [*Min] / *Sub) -10/Subcaves (discovered 3 exits: [*Mat x2] / *Rec) -7/Recycling (discovered 2 exits: *Fac / *Scr) -7/Scraptown (discovered 2 exits: Fac x2) History --------- Turn | Location | Event 1 | -11/Scrapyard | Discovered new exit (range 3) 4 | -11/Scrapyard | Entered Materials 114 | -10/Materials | Discovered new exit (range 16) 179 | -10/Materials | Discovered new exit (range 7) 186 | -10/Materials | Entered Subcaves 302 | -10/Subcaves | Build established: Mutant 489 | -10/Subcaves | A swath of the cavern ceiling suddenly collapsed 839 | -10/Subcaves | Learned location of Zion (-7) 839 | -10/Subcaves | Met a Zionite searching for "candidates" 845 | -10/Subcaves | Shifting Twisted Machinery released Sub. Optics 851 | -10/Subcaves | Discovered new exit (range 6) 1548 | -10/Subcaves | Learned Materials stockpile data 1595 | -10/Subcaves | Learned Materials machine intel 1767 | -10/Subcaves | Shifting Twisted Machinery released Sub. Beam Cannon 1807 | -10/Subcaves | Ambushed by Subdweller buried in earth 2196 | -10/Subcaves | A swath of the cavern ceiling suddenly collapsed 2330 | -10/Subcaves | Shifting Twisted Machinery released Mak. Power Source 2338 | -10/Subcaves | Discovered new exit (range 15) 3346 | -10/Subcaves | Shifting Twisted Machinery released Sub. Beam Cannon 3932 | -10/Subcaves | Discovered new exit (range 10) 4351 | -10/Subcaves | Disturbed a concealed Subdweller 4423 | -10/Subcaves | Shifting Twisted Machinery released Sub. Laser 4790 | -10/Subcaves | Visited 4L-MR0's lab 4829 | -10/Subcaves | Found Cargo Legs 5033 | -10/Subcaves | Visited Clippyterm 5038 | -10/Subcaves | Learned Factory stockpile data 5859 | -10/Subcaves | Ambushed by Subdweller buried in earth 6012 | -10/Subcaves | Ambushed by Subdweller buried in earth 6027 | -10/Subcaves | Crushed by falling debris 6027 | -10/Subcaves | Core integrity fell below 50% 6380 | -10/Subcaves | Ambushed by Subdweller buried in earth 8394 | -10/Subcaves | Entered Recycling 8896 | -7/Recycling | Build established: Commander-Mutant 9684 | -7/Recycling | Discovered new exit (range 15) 9730 | -7/Recycling | Core integrity fell below 20% 9750 | -7/Recycling | Lost 4 allies 11328 | -7/Recycling | Scanned before Scraplab entrance 11363 | -7/Recycling | Entered Scraplab 11383 | -7/Recycling | Discovered new exit (range 2) 11414 | -7/Recycling | Entered Scraptown 11414 | -7/Scraptown | Accompanied by 16 allies 11522 | -7/Scraptown | Visited Cyclists 11572 | -7/Scraptown | Visited Symbiants 11649 | -7/Scraptown | Visited Shadow of the Wyrm 11672 | -7/Scraptown | Visited Junk Repository 11709 | -7/Scraptown | Heard Great Nut preacher, LISTEN AND RECITE! 11752 | -7/Scraptown | Visited Awakened 11814 | -7/Scraptown | Visited Scrapoid Research Area 11879 | -7/Scraptown | Visited Artisan Demo Area 12688 | -7/Scraptown | Visited UFD Registry 12688 | -7/Scraptown | Registered with UFD as "Flakbox" 12743 | -7/Scraptown | Visited LU-1G1's Boring Crew 12780 | -7/Scraptown | Visited Scrap Suit Storage 12820 | -7/Scraptown | Visited Abandonware Association 12860 | -7/Scraptown | Learned abandonware demo "REPAIR.EXE" 13020 | -7/Scraptown | Delivered Scrap Shield to a Scientist 13262 | -7/Scraptown | Visited Curators Association 13337 | -7/Scraptown | Visited Analyses Database 13392 | -7/Scraptown | Visited Observation Area 13482 | -7/Scraptown | Visited Cartography Club 13531 | -7/Scraptown | Found Surveybot 17 Chip 14058 | -7/Scraptown | Found Deep Structural Scanner 14064 | -7/Scraptown | Learned location of Proximity Caves (-3) 14064 | -7/Scraptown | Learned location of Warlord (-4) 14064 | -7/Scraptown | Learned location of Extension (-6) 14064 | -7/Scraptown | Learned 8 Materials zone layouts 14064 | -7/Scraptown | Learned 4 Access zone layouts 14064 | -7/Scraptown | Learned 8 Access zone layouts 14064 | -7/Scraptown | Learned 4 Recycling zone layouts 14064 | -7/Scraptown | Learned 8 Lower Caves zone layouts 14064 | -7/Scraptown | Learned 16 Proximity Caves zone layouts 14064 | -7/Scraptown | Learned 20 Proximity Caves zone layouts 14064 | -7/Scraptown | Learned location of 2 exits from Research 14064 | -7/Scraptown | Learned location of 1 exit from Lower Caves 14064 | -7/Scraptown | Learned location of 3 exits from Upper Caves 14064 | -7/Scraptown | Identified exit to Factory 14089 | -7/Scraptown | Visited Science Guys 15658 | -7/Scraptown | Attacked by Scraptown defenders 15671 | -7/Scraptown | Self-destructed Last Messages --------------- 15661_ KX-EPM(j): "Eat nuts!" 15661_ Guardian 4c suffers critical hit (Burn). 15662_ Slug penetrates 59-FWF(j). 15662_ KX-EPM(j) destroyed. 15662_ Sneak attack on Scavenger 4a. 15662_ Scavenger 4a destroyed. 15662_ 59-FWF(j) destroyed. 15664_ Slug penetrates Machine. 15664_ Machine disabled. 15665_ Trooper 4e suffers critical hit (Burn). 15665_ Trooper 4e destroyed. 15666_ KJ-B4X(E) destroyed. 15669_ Bolt penetrates Machine. 15670_ Engineer 4a destroyed. 15670_ DD-EF0(r) follow-up attacks with Ripteeth. 15670_ Acquired 75 matter. 15670_ Transporter 4b destroyed. 15670_ Trooper 4f destroyed. 15670_ Slug penetrates Guardian 4c. 15670_ DD-EF0(r) follow-up attacks with Ripteeth. Map ----- +----------------------------------------------------+ | ?????????????????????????????????????????????????? | | ## ??????????????????????????????????? | | ###############??????????????????????????????????? | | #################??????????#############?????????? | | ######################### # # # #?????????? | | ##"""""""""""############ # ## # # #####????????? | | ##""""" X """############ # # ##### #????????? | | ##""" """"############ # # # !#!#????????? | | ##" "!""##""" """""# ## #### ## # #????????? | | ##""" """"##" " " # ## # # # #????????? | | ##"""" ""##" " " # ## #X#### #????????? | | ##"" ##" " " # ## # #### ## #????????? | | ##"" "" "&## " " " #g # # # #????????? | | ##"" "" "&## " # ####### ######????????? | | ## "## # # ###??????? | | ##" ##"""""""""# # ###??????? | | ####### ########### ##### ## #############??????? | | ####### ########### #####*[## ###############????? | | """"""" """"""""""" """""=%"" "## """"""""""#????? | | ccc ! ## " "#????? | | x%"## """""" "#????? | | xh!%"## "????" "#????? | | = r"## "????" "#????? | | [%* ik "????" "#????? | | """""""""""""""""""""""""[a i "## """""" "#????? | | """""""""""""""""""""""""@hY "## "#????? | | ##### ################""!* c"## """""""""#????? | | ###########""%=% a ##############????? | | X"##########" ![ ## """"######????? | | "" "" ###########""[%sj "## " "######????? | | "" ???X"##########""xrrr "## X"######????? | | " ??? ######### #""E! "## "####??????? | | ""???? =[ ""####??????? | | ""???? "## " "####??????? | | " ????######### #"" "## """"####??????? | | "" "???"##########" "## """"####??????? | | "" "" ###########"" "############??????? | | X"##########"" "############??????? | | ###########""c "############??????? | | ##### ################""pp "############??????? | | """""""""""""""""""""""""c "##"###"###"#??????? | | """"""""""""""""""""""""" "/" "!" #??????? | | "## """ """ ###????? | | "## "#????? | | "## ""##????? | | ## "]#?????? | | # ""#?????? | | """"""""" """"""""""" """""" ## "#????? | | ######### ########### ###### ## """ """ ###????? | | #### ### ## ## "!" "!" #??????? | +----------------------------------------------------+ Best States ------------- Heat Dissipation 35 Coolant Potential 50 Energy Generation 16 Energy Capacity 290 Matter Stores 300 Matter Capacity 300 Sight Range 16 Terrain Scan Density 10 Armor Coverage 800 Evasion (%) 55 Recoil Reduction 2 Item Schematics ----------------- Imp. Focal Shield | -7/Recycling | Hacked Arm. Leg | -7/Recycling | Hacked Robot Schematics ------------------ None Fabricated ------------ Nothing Repaired ---------- Nothing Studied --------- None Alien Tech Used ----------------- None Achievements -------------- Physics Hates This One Trick Challenges ------------ None Game ------ Seed PlexusRapidCarapace Manual? 0 Play Time 00:57:55 Cumulative 335.3 hours Start 2026.01.26 @ 18:54:33 End 2026.01.26 @ 20:14:49 Sessions 1 Manual Loads 0 Difficulty Rogue Special Mode None Game No. 411 Rogue 409 Adventurer 2 Explorer 0 Win Type - Total 4 Types 2/0/0/1/1/0/0/0/0/0 Lore% 81 Gallery% 71 Achievement% 62 Wizard Run 0 Options --------- Layout 0 ASCII 0 Keyboard 0 Movement Numpad Keybinds 0 Fullscreen 2 Font 24/Smallcaps Map View 76x50 Zoom Use 0% Tactical HUD 1 Map Filters NONE Filters NONE Steam 1 RUN: 5b1f5d62-0a44-46e4-8aa0-c3cd4950d1d2